bitfinex-derivatives/quotes_SOLF0:USTF0_20250310
["timestamp","ask_amount","ask_price","bid_price","bid_amount"]
[1741604278444,1.999,127.72,127.6,1.42613418]
[1741604278647,1.999,127.72,127.63,0.05398049]
[1741604278848,1.999,127.72,127.61,2.1388]
[1741604279043,1.999,127.72,127.66,0.05354733]
[1741604279951,7.8317,127.67,127.66,0.05354733]
[1741604280250,1.999,127.72,127.66,0.05354733]
[1741604280447,7.8308,127.69,127.66,0.05354733]
[1741604280654,1.999,127.72,127.66,0.05354733]
[1741604281454,7.8317,127.67,127.66,0.05354733]
[1741604284156,7.8352,127.62,127.58,1.969]
[1741604284654,2.1455,127.66,127.58,1.969]
[1741604284852,7.8351,127.62,127.58,1.969]
[1741604285050,2.1455,127.66,127.58,1.969]
[1741604285354,0.05460068,127.61,127.59,1.48539108]
[1741604285551,2.1455,127.66,127.59,1.48539108]
[1741604285552,2.1455,127.66,127.6,7.836]
[1741604285751,31.88339558,127.7,127.58,4.0781]
[1741604285953,2.1455,127.7,127.59,1.42626484]
[1741604286150,2.1455,127.7,127.59,9.26256484]
[1741604286354,2.1455,127.7,127.59,7.8363]
[1741604286553,2.1455,127.7,127.58,4.0781]
[1741604286859,2.1455,127.7,127.62,7.8344]
[1741604287049,7.8333,127.65,127.63,0.05301481]
[1741604287650,7.8335,127.64,127.63,0.05301481]
[1741604287844,2.1455,127.7,127.63,0.05301481]
[1741604288848,7.8333,127.65,127.63,0.05301481]
[1741604289045,2.1455,127.7,127.63,0.05301481]
[1741604289250,2.0751,127.69,127.63,0.05301481]
[1741604289852,7.833,127.65,127.63,0.05301481]
[1741604290461,7.8335,127.64,127.63,0.05301481]
[1741604290649,19.87574198,127.67,127.58,21.98484198]
[1741604290851,19.87574198,127.67,127.58,2.1091]
[1741604291054,7.8354,127.62,127.58,9.946]
[1741604291255,19.87574198,127.67,127.58,9.946]
[1741604291656,7.8355,127.61,127.58,9.946]
[1741604291855,0.05030314,127.64,127.57,9.8198]
[1741604292059,19.87574198,127.67,127.58,0.05061968]
[1741604292255,7.836,127.6,127.57,9.8198]
[1741604292456,0.05383768,127.62,127.61,0.05944594]
[1741604292658,0.05383768,127.62,127.58,7.8372]
[1741604292857,7.8355,127.61,127.6,0.05059576]
[1741604293949,7.8355,127.61,127.54,3.9587]
[1741604293950,7.8375,127.58,127.54,23.83444198]
[1741604294255,19.87574198,127.65,127.54,25.81384198]
[1741604294563,7.8369,127.59,127.55,1.42673638]
[1741604294757,7.8369,127.59,127.56,19.87574198]
[1741604294961,7.8369,127.59,127.56,27.71374198]
[1741604295257,7.888708,127.59,127.56,27.76665634]
[1741604295463,0.051808,127.59,127.57,7.8375]
[1741604295855,0.051808,127.59,127.56,19.92865634]
[1741604296055,0.051808,127.59,127.58,7.8372]
[1741604296862,0.051808,127.59,127.57,7.8374]
[1741604297062,0.051808,127.59,127.56,19.92865634]
[1741604297659,0.051808,127.59,127.57,7.8375]
[1741604297958,0.051808,127.59,127.56,19.92865634]
[1741604298263,0.051808,127.59,127.56,27.76685634]
[1741604298656,7.888808,127.59,127.56,27.76685634]
[1741604299569,0.051808,127.59,127.56,19.92865634]
[1741604300667,0.051808,127.59,127.58,7.8372]
[1741604300964,0.051808,127.59,127.56,19.92865634]
[1741604301371,0.051808,127.59,127.57,7.8374]
[1741604303663,7.889008,127.59,127.56,19.92865634]
[1741604304262,7.889008,127.59,127.57,7.8376]
[1741604304667,7.8375,127.58,127.56,19.92865634]
[1741604304963,0.051808,127.59,127.56,19.92865634]
[1741604305763,0.051808,127.59,127.57,1.42653294]
[1741604305968,0.051808,127.59,127.58,7.8372]
[1741604306565,15.6607,127.7,127.58,21.30217986]
[1741604306760,42.721939,127.71,127.63,19.87574198]
[1741604307160,7.8327,127.66,127.63,27.70944198]
[1741604307361,7.8327,127.66,127.63,19.87574198]
[1741604307562,7.88917932,127.66,127.63,19.92839028]
[1741604307761,7.88917932,127.66,127.64,7.8333]
[1741604307963,0.05647932,127.66,127.63,19.92839028]
[1741604308162,7.833,127.65,127.63,19.92839028]
[1741604308669,7.88907932,127.66,127.63,27.76229028]
[1741604309463,0.05647932,127.66,127.63,19.92839028]
[1741604309770,7.8333,127.65,127.63,19.92839028]
[1741604309967,0.05647932,127.66,127.63,19.92839028]
[1741604310665,0.05647932,127.66,127.65,7.8329]
[1741604310870,4.0299,127.72,127.65,7.8329]
[1741604311169,4.0299,127.72,127.66,7.8323]
[1741604311365,7.8308,127.69,127.66,7.8323]
[1741604311562,7.8308,127.69,127.64,2.0428]
[1741604311563,4.0299,127.72,127.64,2.0428]
[1741604311964,7.8329,127.65,127.64,2.0428]
[1741604312370,4.0299,127.72,127.64,2.0428]
[1741604312572,7.832,127.67,127.64,2.0428]
[1741604312871,7.832,127.67,127.64,9.8759]
[1741604313065,7.832,127.67,127.64,9.92585096]
[1741604313260,4.0299,127.72,127.64,2.09275096]
[1741604313475,4.0299,127.72,127.64,2.0428]
[1741604313671,4.0299,127.72,127.67,0.04963172]
[1741604313874,7.8311,127.68,127.67,0.04963172]
[1741604318877,19.87574198,127.7,127.61,27.71064198]
[1741604319073,7.8343,127.63,127.61,19.87574198]
[1741604319275,19.87574198,127.68,127.6,1.9974]
[1741604319470,7.8339,127.64,127.6,1.9974]
[1741604319671,2.1411,127.67,127.6,1.9974]
[1741604320076,0.05627363,127.65,127.62,0.05961175]
[1741604321283,7.8342,127.63,127.62,0.05961175]
[1741604322579,7.8368,127.59,127.57,1.9974]
[1741604323375,7.8372,127.58,127.57,1.9974]
[1741604323579,0.05207711,127.59,127.56,0.05509271]
[1741604323779,0.05207711,127.59,127.55,19.87574198]
[1741604324078,0.05207711,127.59,127.56,0.06027964]
[1741604324475,7.8378,127.57,127.56,0.06027964]
[1741604324984,0.05207711,127.59,127.56,0.06027964]
[1741604324985,7.8375,127.58,127.56,0.06027964]
[1741604325286,0.05207711,127.59,127.56,0.06027964]
[1741604325980,0.05207711,127.59,127.57,7.8373]
[1741604326882,0.05207711,127.59,127.56,0.06027964]
[1741604327783,7.8376,127.58,127.56,0.06027964]
[1741604327983,0.05207711,127.59,127.56,0.06027964]
[1741604328386,0.05207711,127.59,127.57,7.8375]
[1741604330379,7.88917711,127.59,127.57,7.8375]
[1741604330985,7.88917711,127.59,127.56,7.89837964]
[1741604331689,7.8373,127.58,127.56,7.89837964]
[1741604332078,7.8373,127.58,127.56,0.06027964]
[1741604332281,0.05207711,127.59,127.56,0.06027964]
[1741604332775,7.8372,127.58,127.56,0.06027964]
[1741604332978,0.05207711,127.59,127.56,0.06027964]
[1741604333172,0.05207711,127.59,127.56,7.89847964]
[1741604333375,7.8373,127.58,127.56,7.89847964]
[1741604333585,0.05207711,127.59,127.56,7.89847964]
[1741604333785,0.05207711,127.59,127.57,7.8378]
[1741604334172,0.05207711,127.59,127.56,0.06027964]
[1741604334377,0.05207711,127.59,127.56,7.89837964]
[1741604334780,0.05207711,127.59,127.57,19.87574198]
[1741604335182,7.88897711,127.59,127.57,19.87574198]
[1741604335585,7.88897711,127.59,127.57,27.71334198]
[1741604336389,0.05207711,127.59,127.58,7.8372]
[1741604337881,0.05207711,127.59,127.57,27.71314198]
[1741604338082,7.88917711,127.59,127.57,27.71314198]
[1741604338488,0.05207711,127.59,127.58,7.8372]
[1741604339794,0.05207711,127.59,127.57,19.87574198]
[1741604340090,0.05207711,127.59,127.57,27.71324198]
[1741604340491,0.05207711,127.59,127.58,7.8372]
[1741604340695,0.05207711,127.59,127.57,19.87574198]
[1741604340886,0.05207711,127.59,127.56,0.06027964]
[1741604341092,0.05207711,127.59,127.56,7.89837964]
[1741604341295,7.88897711,127.59,127.56,7.89837964]
[1741604341595,7.88897711,127.59,127.57,7.8377]
[1741604342385,7.88897711,127.59,127.56,0.06027964]
[1741604342585,0.05207711,127.59,127.56,0.06027964]
[1741604342985,0.05207711,127.59,127.57,7.8375]
[1741604343489,0.05207711,127.59,127.56,0.06027964]
[1741604344195,0.05207711,127.59,127.57,7.8378]
[1741604344584,0.05207711,127.59,127.56,0.06027964]
[1741604344782,0.05207711,127.59,127.58,7.8372]
[1741604348999,7.8345,127.63,127.61,7.835]
[1741604349391,7.8345,127.63,127.57,21.97674198]
[1741604349999,0.05492709,127.61,127.59,0.05738092]
[1741604350797,0.05492709,127.61,127.6,7.836]
[1741604352303,0.05492709,127.61,127.6,20.56323465]
[1741604354189,1.9383,127.66,127.6,12.72723465]
[1741604354501,2.1013,127.67,127.64,12.72723465]
[1741604355395,2.1013,127.67,127.64,20.61579522]
[1741604355901,7.8326,127.66,127.64,20.61579522]
[1741604357404,2.1013,127.67,127.64,12.78239522]
[1741604357996,7.8326,127.66,127.64,20.61559522]
[1741604358596,7.8329,127.65,127.64,12.78239522]
[1741604359391,7.8326,127.66,127.64,12.78239522]
[1741604359794,7.8329,127.65,127.64,12.78239522]
[1741604362004,12.72723465,127.69,127.64,12.78239522]
[1741604363506,7.8329,127.65,127.64,12.78239522]
[1741604364008,7.8328,127.66,127.64,12.78239522]
[1741604364404,7.8328,127.66,127.64,20.61589522]
[1741604365811,7.8329,127.65,127.64,12.78239522]
[1741604366508,12.72723465,127.69,127.64,12.78239522]
[1741604366915,12.72723465,127.67,127.64,0.05516057]
[1741604367209,7.8329,127.65,127.64,0.05516057]
[1741604368812,7.8327,127.66,127.64,0.05516057]
[1741604369012,7.8327,127.66,127.64,7.88866057]
[1741604370013,12.72723465,127.69,127.64,0.05516057]
[1741604370720,7.8329,127.65,127.64,0.05516057]
[1741604371101,12.72723465,127.69,127.64,0.05516057]
[1741604371306,12.72723465,127.69,127.64,20.61589522]
[1741604371713,15.6542,127.75,127.66,20.55923465]
[1741604371921,12.72723465,127.72,127.66,20.55923465]
[1741604372212,12.72723465,127.72,127.69,0.05951388]
[1741604372213,7.8299,127.7,127.69,0.05951388]
[1741604373013,20.55713465,127.7,127.69,0.05951388]
[1741604373213,12.72723465,127.7,127.63,12.72723465]
[1741604373514,12.72723465,127.68,127.62,12.72723465]
[1741604373715,7.8332,127.65,127.62,20.56153465]
[1741604374204,7.88882802,127.65,127.62,20.61252625]
[1741604374514,0.05562802,127.65,127.63,7.8338]
[1741604374915,0.05562802,127.65,127.62,12.77822625]
[1741604375102,0.05562802,127.65,127.63,7.8342]
[1741604375307,0.05562802,127.65,127.62,12.77822625]
[1741604377513,0.05562802,127.65,127.64,12.72723465]
[1741604378416,0.05562802,127.65,127.62,12.77822625]
[1741604378816,7.834,127.64,127.62,12.77822625]
[1741604379111,0.05562802,127.65,127.62,12.77822625]
[1741604379615,7.88882802,127.65,127.63,7.8341]
[1741604382212,0.05562802,127.65,127.62,12.77822625]
[1741604382419,0.05562802,127.65,127.64,7.8335]
[1741604383120,7.88852802,127.65,127.63,7.8337]
[1741604383312,0.05562802,127.65,127.62,12.77822625]
[1741604383715,0.05562802,127.65,127.64,7.8335]
[1741604385015,0.05562802,127.65,127.62,12.77822625]
[1741604385824,0.05562802,127.65,127.64,7.8335]
[1741604386118,7.88852802,127.65,127.62,12.77822625]
[1741604386324,0.05562802,127.65,127.64,20.56073465]
[1741604391221,0.05562802,127.65,127.64,12.72723465]
[1741604391424,7.88852802,127.65,127.64,12.72723465]
[1741604391823,0.05562802,127.65,127.64,20.56073465]
[1741604393026,0.05562802,127.65,127.62,12.77822625]
[1741604393623,0.05562802,127.65,127.62,0.0509916]
[1741604394026,7.8342,127.63,127.62,0.0509916]
[1741604397922,7.8339,127.64,127.62,0.0509916]
[1741604398117,4.21182802,127.65,127.62,0.0509916]
[1741604398528,7.8342,127.63,127.62,0.0509916]
[1741604399530,0.05562802,127.65,127.62,0.0509916]
[1741604399737,0.05562802,127.65,127.62,7.8853916]
[1741604399931,0.05562802,127.65,127.62,0.0509916]
[1741604400437,0.05562802,127.65,127.64,12.72723465]
[1741604400625,2.802e-05,127.65,127.64,12.72723465]
[1741604400825,2.0575,127.72,127.64,14.15295336]
[1741604401133,7.8297,127.71,127.67,12.72723465]
[1741604401632,12.72723465,127.71,127.66,12.72723465]
[1741604401933,12.72723465,127.69,127.67,0.05755591]
[1741604402140,7.8315,127.68,127.67,0.05755591]
[1741604402625,7.8306,127.69,127.67,0.05755591]
[1741604403026,12.72723465,127.71,127.67,0.05755591]
[1741604403228,7.8311,127.68,127.67,0.05755591]
[1741604403622,2.0575,127.72,127.67,12.78479056]
[1741604404025,12.72723465,127.71,127.67,0.05755591]
[1741604404232,7.8311,127.68,127.67,0.05755591]
[1741604405429,12.72723465,127.71,127.67,0.05755591]
[1741604406036,7.8311,127.68,127.67,0.05755591]
[1741604406436,12.72723465,127.69,127.63,14.69673465]
[1741604406632,12.72723465,127.67,127.61,12.72723465]
[1741604406836,12.72723465,127.65,127.59,117.13108331]
[1741604407034,7.8359,127.61,127.59,117.13108331]
[1741604407230,12.72723465,127.61,127.59,86.20245586]
[1741604407639,7.836,127.6,127.59,67.05872479]
[1741604407832,12.77735278,127.61,127.58,128.26538379]
[1741604408141,12.72723465,127.59,127.58,128.26538379]
[1741604408740,0.05011813,127.61,127.58,128.26538379]
[1741604408925,0.05011813,127.61,127.59,12.72723465]
[1741604409126,12.72723465,127.66,127.59,12.72723465]
[1741604409127,12.72723465,127.69,127.59,12.72723465]
[1741604409326,12.72723465,127.7,127.65,12.72723465]
[1741604409932,10.68048475,127.68,127.67,12.72723465]
[1741604410333,10.68048475,127.68,127.66,0.05902153]
[1741604410537,10.68048475,127.68,127.66,2.02712153]
[1741604410732,10.68048475,127.68,127.66,2.02562245]
[1741604410939,10.73433756,127.68,127.66,2.02562245]
[1741604411145,10.73433756,127.68,127.67,7.8317]
[1741604411441,10.73433756,127.68,127.66,2.02562245]
[1741604411650,10.73433756,127.68,127.66,0.05752245]
[1741604412337,10.73433756,127.68,127.66,7.88982245]
[1741604412537,10.73433756,127.68,127.66,0.05752245]
[1741604412842,10.73433756,127.68,127.67,7.8317]
[1741604413138,0.05385281,127.68,127.67,7.8317]
[1741604414246,19.86379141,127.74,127.69,7.8303]
[1741604415042,19.86379141,127.74,127.66,21.81439141]
[1741604415344,0.02222884,127.71,127.69,0.05995852]
[1741604415640,70.41103041,127.78,127.68,19.86379141]
[1741604415842,19.86379141,127.78,127.68,19.86379141]
[1741604416237,19.86379141,127.78,127.69,1.42520102]
[1741604416550,1.8576,127.79,127.7,19.86379141]
[1741604416854,19.86379141,127.78,127.71,2.1236]
[1741604417036,19.86379141,127.78,127.73,0.05012936]
[1741604417343,27.68939141,127.78,127.73,0.05012936]
[1741604417545,19.86379141,127.78,127.73,0.05012936]
[1741604417738,27.68909141,127.78,127.73,0.05012936]
[1741604418239,19.86379141,127.78,127.73,0.05012936]
[1741604418446,19.86379141,127.76,127.73,0.05012936]
[1741604418746,7.8274,127.74,127.73,0.05012936]
[1741604419145,19.86379141,127.76,127.73,0.05012936]
[1741604419344,7.8269,127.75,127.73,0.05012936]
[1741604419641,19.86379141,127.76,127.73,0.05012936]
[1741604419844,7.8253,127.78,127.73,0.05012936]
[1741604420238,1.8576,127.79,127.73,0.05012936]
[1741604421048,19.86379141,127.78,127.73,0.05012936]
[1741604422044,7.8259,127.77,127.73,0.05012936]
[1741604422749,1.8576,127.79,127.73,0.05012936]
[1741604422944,7.8263,127.76,127.73,0.05012936]
[1741604423348,1.8576,127.79,127.73,0.05012936]
[1741604423541,7.8261,127.77,127.73,0.05012936]
[1741604423738,19.86379141,127.8,127.73,0.05012936]
[1741604423944,7.8228,127.82,127.75,19.86379141]
[1741604424148,19.86379141,127.83,127.76,2.0222]
[1741604424344,0.7383,127.84,127.77,0.05122708]
[1741604424545,7.8216,127.84,127.77,0.05122708]
[1741604424741,19.86379141,127.85,127.77,0.05122708]
[1741604424946,19.86379141,127.85,127.76,21.88599141]
[1741604425142,42.721939,127.86,127.83,19.86379141]
[1741604425345,42.721939,127.86,127.85,7.8207]
[1741604425540,85.44387802,127.87,127.85,7.8207]
[1741604425541,52.80604586,127.87,127.85,19.86379141]
[1741604425743,52.80604586,127.87,127.84,4.072]
[1741604426361,46.36444586,127.87,127.85,19.86379141]
[1741604426544,46.36444586,127.87,127.86,7.8201]
[1741604426748,128.16581703,127.88,127.85,19.86379141]
[1741604427050,128.79725047,127.94,127.87,19.86379141]
[1741604427252,7.8166,127.92,127.87,19.86379141]
[1741604427452,7.8166,127.92,127.89,0.05412433]
[1741604427653,19.86379141,127.92,127.89,0.05412433]
[1741604427953,19.86379141,127.9,127.81,19.86379141]
[1741604428152,19.86379141,127.93,127.83,19.86379141]
[1741604428353,7.818,127.9,127.83,19.86379141]
[1741604428651,19.86379141,127.93,127.85,19.86379141]
[1741604429053,0.05255631,127.88,127.87,19.86379141]
[1741604429254,128.79725047,127.94,127.87,19.86379141]
[1741604429456,128.79725047,127.94,127.89,19.86379141]
[1741604430247,128.79725047,127.94,127.91,19.86379141]
[1741604430764,1.9418,127.97,127.91,81.91827242]
[1741604430952,9.7557,127.97,127.91,81.91827242]
[1741604431154,2.1334,128.01,127.91,81.91827242]
[1741604431350,2.1334,128.01,127.93,19.86379141]
[1741604431545,21.99719141,128.01,127.93,19.86379141]
[1741604431743,21.99719141,128.01,127.96,0.05170052]
[1741604431949,19.86379141,127.99,127.91,81.86379141]
[1741604432551,2.1334,128.01,127.91,19.86379141]
[1741604432751,7.8137,127.97,127.91,19.86379141]
[1741604432952,21.99719141,128.01,127.91,19.86379141]
[1741604433153,0.05170052,127.95,127.93,0.05682701]
[1741604433352,0.05170052,127.95,127.93,19.92061842]
[1741604433553,2.1334,128.01,127.93,19.86379141]
[1741604433754,0.05170052,127.95,127.93,19.92160269]
[1741604433960,2.1334,128.01,127.93,19.86379141]
[1741604434161,0.05170052,127.95,127.93,19.92164698]
[1741604434360,2.1334,128.01,127.93,19.86379141]
[1741604434563,19.86379141,128.07,127.98,19.86379141]
[1741604434865,19.86379141,128.09,128.0,19.86379141]
[1741604435249,7.8077,128.07,128.02,19.86379141]
[1741604435449,7.8077,128.07,128.03,0.05258455]
[1741604435662,7.8077,128.07,128.04,62.0]
[1741604435861,22.59869141,128.11,128.04,62.0]
[1741604436256,1.9986,128.11,128.04,81.86379141]
[1741604436459,7.8077,128.07,128.06,0.04998142]
[1741604436854,19.86379141,128.09,128.0,19.86379141]
[1741604437059,19.86379141,128.05,127.96,19.86379141]
[1741604437362,7.8134,127.97,127.94,19.86379141]
[1741604437663,19.86379141,128.01,127.92,19.86379141]
[1741604438163,0.04998142,127.98,127.95,0.05244976]
[1741604438564,2.11838142,127.98,127.87,90.62925248]
[1741604438761,2.11838142,127.98,127.87,31.65619599]
[1741604439062,7.8171,127.91,127.87,39.47559599]
[1741604439373,31.65619599,127.97,127.86,85.89917327]
[1741604439662,0.05968826,127.93,127.9,0.0559793]
[1741604440365,0.05968826,127.93,127.86,85.89917327]
[1741604440567,7.8193,127.88,127.86,85.89917327]
[1741604440767,0.05968826,127.93,127.86,85.89917327]
[1741604441068,31.65619599,127.94,127.84,9.76]
[1741604441564,0.05733945,127.9,127.88,0.05465144]
[1741604444567,0.05733945,127.9,127.89,7.8182]
[1741604445370,1.9339,128.0,127.88,0.05465144]
[1741604445560,2.012,127.99,127.89,1.42284504]
[1741604445761,2.012,127.99,127.88,1.42284504]
[1741604445973,2.012,127.99,127.89,1.42286598]
[1741604446169,2.012,127.99,127.93,7.8157]
[1741604446468,9.8245,127.99,127.93,7.8157]
[1741604446662,0.05306007,127.97,127.95,0.05068606]
[1741604447570,0.05306007,127.97,127.96,7.814]
[1741604448363,2.0391,128.05,127.96,1.42151405]
[1741604448564,2.0391,128.05,127.97,62.0]
[1741604448764,7.8075,128.07,127.98,31.65619599]
[1741604448968,35.63559599,128.1,127.98,31.65619599]
[1741604449169,35.63559599,128.1,127.99,1.42054531]
[1741604449360,35.63559599,128.1,128.02,7.8098]
[1741604449562,0.04801096,128.06,128.03,0.05660472]
[1741604449962,0.04801096,128.06,128.05,7.8085]
[1741604450964,0.04801096,128.06,128.04,7.809]
[1741604451165,0.04801096,128.06,128.03,0.05660472]
[1741604454363,7.8089,128.05,128.03,0.05660472]
[1741604454558,0.04801096,128.06,128.03,0.05660472]
[1741604454775,7.8091,128.04,128.03,0.05660472]
[1741604455068,0.04801096,128.06,127.96,1.9863]
[1741604455268,0.04801096,128.06,127.97,7.813]
[1741604455472,31.65619599,128.08,127.96,1.9863]
[1741604455674,35.63559599,128.1,127.96,1.9863]
[1741604455867,7.8113,128.01,127.97,7.813]
[1741604456062,31.65619599,128.07,127.96,1.9863]
[1741604456263,0.0582263,128.0,127.98,0.04949683]
[1741604456772,31.65619599,128.07,127.97,7.8128]
[1741604456975,0.05560373,128.0,127.98,0.05668669]
[1741604457274,31.65619599,128.07,127.97,7.8128]
[1741604457569,31.65619599,128.07,127.96,9.7999]
[1741604457871,0.05032048,128.03,128.01,3.054e-05]
[1741604458166,2.0275,128.03,127.92,31.65619599]
[1741604458373,2.0275,128.03,127.92,33.72159599]
[1741604458566,2.0275,128.03,127.93,1.4224437]
[1741604458772,2.0275,128.03,127.92,33.72159599]
[1741604459272,0.05733812,127.99,127.96,0.05962747]
[1741604461075,0.05733812,127.99,127.92,2.0654]
[1741604461777,7.8146,127.95,127.92,2.0654]
[1741604462177,0.05020792,127.95,127.92,69.32920093]
[1741604462363,2.0784,128.09,127.95,192.0]
[1741604462678,32.00629282,128.2,128.03,31.65619599]
[1741604462875,31.65619599,128.13,127.98,31.65619599]
[1741604463082,31.65619599,128.13,127.99,1.41981563]
[1741604463377,7.8084,128.06,128.05,0.0529773]
[1741604463676,31.65619599,128.07,127.98,31.65619599]
[1741604463875,7.8097,128.03,127.96,2.0621]
[1741604464178,2.0903,128.06,127.96,2.0621]
[1741604464675,2.0903,128.06,127.97,7.8129]
[1741604464877,2.0903,128.06,128.0,0.05363511]
[1741604464878,0.04953442,128.02,128.0,0.05363511]
[1741604465175,0.04953442,128.02,127.93,1.42141074]
[1741604465377,31.65619599,128.04,127.93,1.42141074]
[1741604465675,7.8116,128.0,127.93,1.42141074]
[1741604465875,31.65619599,128.04,127.94,62.0]
[1741604466071,7.812,128.0,127.95,7.8144]
[1741604466272,0.05404175,128.0,127.98,0.05503924]
[1741604466578,0.05404175,128.0,127.92,2.0654]
[1741604466968,31.65619599,128.01,127.92,2.0654]
[1741604467174,31.65619599,128.04,127.92,2.0654]
[1741604467685,0.05881465,127.99,127.97,0.05280025]
[1741604468073,0.05199653,127.99,127.97,0.05280025]
[1741604468279,0.05199653,127.99,127.92,9.8816]
[1741604468768,0.05199653,127.99,127.92,2.0654]
[1741604469570,0.05199653,127.99,127.94,0.05430254]
[1741604470380,7.8143,127.96,127.94,0.05430254]
[1741604470881,0.05545845,127.96,127.94,0.05430254]
[1741604471381,7.86955845,127.96,127.94,0.05430254]
[1741604471776,0.05545845,127.96,127.94,0.05430254]
[1741604471983,7.8146,127.95,127.94,0.05430254]
[1741604472175,0.05545845,127.96,127.86,31.65619599]
[1741604472376,0.7337,127.98,127.87,3.44384118]
[1741604472584,0.7337,127.98,127.89,7.8179]
[1741604472973,31.65619599,127.97,127.87,9.8426]
[1741604473281,0.05145892,127.93,127.91,0.05357504]
[1741604473470,7.86745892,127.93,127.91,0.05357504]
[1741604473675,0.05145892,127.93,127.91,0.05357504]
[1741604474270,7.8164,127.92,127.91,0.05357504]
[1741604474475,0.05145892,127.93,127.83,33.01650089]
[1741604474674,0.05145892,127.93,127.84,1.42029956]
[1741604474875,31.65619599,127.94,127.85,1.42039328]
[1741604475076,31.65619599,127.94,127.83,33.76829599]
[1741604475282,7.8187,127.89,127.84,1.42060102]
[1741604475586,0.05530702,127.88,127.85,0.04948181]
[1741604475978,0.05530702,127.88,127.84,1.42060102]
[1741604475979,2.1061,127.96,127.84,1.42060102]
[1741604476185,0.05854972,127.88,127.85,0.04939039]
[1741604476385,7.8168,127.92,127.84,1.42060102]
[1741604476591,0.05295762,127.88,127.85,0.0527808]
[1741604476885,31.65619599,127.94,127.84,1.4185815]
[1741604477088,0.05447529,127.88,127.85,0.0589077]
[1741604477277,0.05447529,127.88,127.84,1.4185815]
[1741604477580,2.1061,127.96,127.83,2.1121]
[1741604477581,0.05118093,127.87,127.85,1.47022326]
[1741604477778,0.05118093,127.87,127.85,31.70623601]
[1741604477779,8.093e-05,127.87,127.85,31.70623601]
[1741604477975,2.1061,127.96,127.85,31.65619599]
[1741604478175,2.1061,127.96,127.87,31.65619599]
[1741604478486,2.1061,127.96,127.88,1.4199474]
[1741604478983,0.05033193,127.93,127.91,7.8693863]
[1741604479284,0.05033193,127.93,127.91,0.0523863]
[1741604480471,0.05033193,127.93,127.91,7.8690863]
[1741604481180,0.05033193,127.93,127.91,0.0523863]
[1741604481381,0.05033193,127.93,127.85,1.41970075]
[1741604481577,31.65619599,127.95,127.85,1.41970075]
[1741604481987,31.65619599,127.95,127.84,85.89917327]
[1741604482288,2.1061,127.96,127.83,88.01127327]
[1741604482484,0.05890332,127.91,127.88,0.05131292]
[1741604482678,0.05890332,127.91,127.86,31.65619599]
[1741604482885,0.05890332,127.91,127.87,3.43076423]
[1741604483087,0.05890332,127.91,127.88,0.05251983]
[1741604484279,0.05890332,127.91,127.88,7.87091983]
[1741604484592,0.05890332,127.91,127.88,0.05251983]
[1741604484791,0.05890332,127.91,127.89,7.8179]
[1741604485187,0.05890332,127.91,127.88,0.05251983]
[1741604488091,7.8179,127.9,127.88,0.05251983]
[1741604488391,0.05890332,127.91,127.88,0.05251983]
[1741604488586,7.8182,127.89,127.88,0.05251983]
[1741604489791,0.05890332,127.91,127.88,0.05251983]
[1741604490488,7.8179,127.9,127.88,0.05251983]
[1741604491296,7.8179,127.9,127.88,7.87111983]
[1741604491491,7.8179,127.9,127.88,0.05251983]
[1741604491892,7.8179,127.9,127.88,7.87111983]
[1741604492095,0.05890332,127.91,127.88,0.05251983]
[1741604492394,7.8182,127.89,127.88,0.05251983]
[1741604493485,7.818,127.9,127.88,7.87121983]
[1741604493690,0.05890332,127.91,127.88,0.05251983]
[1741604494083,7.8182,127.89,127.88,0.05251983]
[1741604494491,0.05890332,127.91,127.83,2.1121]
[1741604494684,7.8213,127.84,127.83,2.1121]
[1741604495085,31.65619599,127.88,127.79,93.72307327]
[1741604495293,31.65619599,127.86,127.79,85.89917327]
[1741604495490,2.0523,127.85,127.79,85.89917327]
[1741604495686,0.05633146,127.84,127.81,0.05122104]
[1741604496087,31.71252745,127.84,127.79,85.89917327]
[1741604496290,31.65619599,127.82,127.79,79.46207327]
[1741604496593,31.65619599,127.82,127.78,128.84875991]
[1741604496795,7.8243,127.79,127.75,128.84875991]
[1741604497098,32.38979599,127.84,127.75,128.84875991]
[1741604497301,0.05425371,127.78,127.77,7.8255]
[1741604497595,0.05163485,127.79,127.75,128.84875991]
[1741604497901,0.05163485,127.79,127.78,7.825]
[1741604498291,0.05163485,127.79,127.76,1.73340944]
[1741604498591,0.05163485,127.79,127.76,0.05770944]
[1741604498793,0.05163485,127.79,127.77,7.8252]
[1741604498986,0.05163485,127.79,127.76,0.05770944]
[1741604501492,0.05163485,127.79,127.76,7.88360944]
[1741604501687,0.05163485,127.79,127.76,0.05770944]